fUST/lending_fUST_20240911
["ID","MTS","AMOUNT","RATE_DAILY","PERIOD"]
[337758562,1726063669789,-3779.4,0.00024931,2]
[337758563,1726063669811,-500.0,0.00024931,2]
[337758564,1726063669833,-500.0,0.00024931,2]
[337758565,1726063669857,-500.0,0.00024931,2]
[337758566,1726063669879,-2859.09,0.00024931,2]
[337758567,1726063669900,-500.0,0.00024931,2]
[337758568,1726063669923,-500.0,0.00024931,2]
[337758569,1726063669946,-500.0,0.00024931,2]
[337758570,1726063669967,-500.0,0.00024931,2]
[337758571,1726063669989,-500.0,0.00024931,2]
[337758572,1726063670010,-551.61659308,0.00024931,2]
[337758573,1726063670032,-500.0,0.00024931,2]
[337758574,1726063670054,-508.6403589,0.00024931,2]
[337758575,1726063670076,-500.0,0.00024931,2]
[337758576,1726063670098,-500.0,0.00024931,2]
[337758577,1726063670120,-500.0,0.00024931,2]
[337758578,1726063670141,-500.0,0.00024931,2]
[337758579,1726063670163,-500.0,0.00024931,2]
[337758580,1726063670184,-500.0,0.00024931,2]
[337758581,1726063670207,-500.0,0.00024931,2]
[337758582,1726063670229,-500.0,0.00024931,2]
[337758583,1726063670250,-500.0,0.00024931,2]
[337758584,1726063670272,-500.0,0.00024931,2]
[337758585,1726063670294,-500.0,0.00024931,2]
[337758586,1726063670321,-1077.93,0.00024931,2]
[337758587,1726063670344,-500.0,0.00024931,2]
[337758588,1726063670366,-500.0,0.00024931,2]
[337758589,1726063670388,-503.62,0.00024931,2]
[337758590,1726063670410,-500.0,0.00024931,2]
[337758591,1726063670431,-500.0,0.00024931,2]
[337758592,1726063670457,-500.0,0.00024931,2]
[337758593,1726063670479,-500.0,0.00024931,2]
[337758594,1726063670501,-500.0,0.00024931,2]
[337758595,1726063670523,-500.0,0.00024931,2]
[337758596,1726063670546,-500.0,0.00024931,2]
[337758597,1726063670569,-500.0,0.00024931,2]
[337758598,1726063670593,-257.18678105,0.00024931,2]
[337758599,1726063670614,-500.0,0.00024931,2]
[337758600,1726063670636,-500.0,0.00024931,2]
[337758601,1726063670658,-847.03,0.00024931,2]
[337758602,1726063670684,-500.0,0.00024931,2]
[337758603,1726063670707,-500.0,0.00024931,2]
[337758604,1726063670730,-702.09,0.00024931,2]
[337758605,1726063670753,-379.49889061,0.00024931,2]
[337758606,1726063670773,-522.19,0.00024931,2]
[337758607,1726063670795,-500.0,0.00024931,2]
[337758608,1726063670816,-500.0,0.00024931,2]
[337758609,1726063670838,-500.0,0.00024931,2]
[337758610,1726063670859,-2731.17,0.00024931,2]
[337758611,1726063670880,-500.0,0.00024931,2]
[337758612,1726063670902,-500.0,0.00024931,2]
[337758613,1726063670923,-504.48789791,0.00024931,2]
[337758614,1726063670947,-395.25634537,0.00024931,2]
[337758615,1726063670968,-500.0,0.00024931,2]
[337758616,1726063670989,-500.0,0.00024931,2]
[337758617,1726063671016,-500.0,0.00024931,2]
[337758618,1726063671038,-500.0,0.00024931,2]
[337758619,1726063671059,-1280.64,0.00024931,2]
[337758620,1726063671081,-500.0,0.00024931,2]
[337758621,1726063671103,-500.0,0.00024931,2]
[337758622,1726063671125,-333.60621358,0.00024931,2]
[337758623,1726063671146,-500.0,0.00024931,2]
[337758624,1726063671169,-500.0,0.00024931,2]
[337758625,1726063671194,-500.0,0.00024931,2]
[337758626,1726063671216,-500.0,0.00024931,2]
[337758627,1726063671238,-772.65,0.00024931,2]
[337758628,1726063671260,-500.0,0.00024931,2]
[337758629,1726063671282,-500.0,0.00024931,2]
[337758630,1726063671304,-500.0,0.00024931,2]
[337758631,1726063671327,-500.0,0.00024931,2]
[337758632,1726063671348,-500.0,0.00024931,2]
[337758633,1726063671370,-500.0,0.00024931,2]
[337758634,1726063671392,-155.87612797,0.00024931,2]
[337758635,1726063671414,-500.0,0.00024931,2]
[337758636,1726063671436,-500.0,0.00024931,2]
[337758637,1726063671463,-1789.18,0.00024931,2]
[337758638,1726063671486,-500.0,0.00024931,2]
[337758639,1726063671508,-687.16,0.00024931,2]
[337758640,1726063671530,-1443.03,0.00024931,2]
[337758641,1726063671555,-500.0,0.00024931,2]
[337758642,1726063671579,-692.04,0.00024931,2]
[337758643,1726063671601,-500.0,0.00024931,2]
[337758644,1726063671624,-544.1736316,0.00024931,2]
[337758645,1726063671646,-533.63,0.00024931,2]
[337758646,1726063671668,-500.0,0.00024931,2]
[337758647,1726063671698,-500.0,0.00024931,2]
[337758648,1726063671725,-500.0,0.00024931,2]
[337758649,1726063671752,-500.0,0.00024931,2]
[337758650,1726063671774,-162.12386814,0.00024931,2]
[337758651,1726063671795,-500.0,0.00024931,2]
[337758652,1726063671817,-500.0,0.00024931,2]
[337758653,1726063671839,-500.0,0.00024931,2]
[337758654,1726063671864,-500.0,0.00024931,2]
[337758655,1726063672131,-500.0,0.00024931,2]
[337758656,1726063672158,-589.68,0.00024931,2]
[337758657,1726063672179,-500.0,0.00024931,2]
[337758658,1726063672201,-500.0,0.00024931,2]
[337758659,1726063672222,-500.0,0.00024931,2]
[337758660,1726063672245,-500.0,0.00024931,2]
[337758661,1726063672268,-500.0,0.00024931,2]
[337758662,1726063672289,-500.0,0.00024931,2]
[337758663,1726063672310,-500.0,0.00024931,2]
[337758664,1726063672333,-500.0,0.00024931,2]
[337758665,1726063672356,-500.0,0.00024931,2]
[337758666,1726063672378,-702.84,0.00024931,2]
[337758667,1726063672401,-1232.06,0.00024931,2]
[337758668,1726063672422,-500.0,0.00024931,2]
[337758669,1726063672446,-937.49,0.00024931,2]
[337758670,1726063672469,-500.0,0.00024931,2]
[337758671,1726063672490,-500.0,0.00024931,2]
[337758672,1726063672511,-500.0,0.00024931,2]
[337758673,1726063672532,-500.0,0.00024931,2]
[337758674,1726063672553,-500.0,0.00024931,2]
[337758675,1726063672575,-566.28440779,0.00024931,2]
[337758676,1726063672595,-753.04,0.00024931,2]
[337758677,1726063672616,-500.0,0.00024931,2]
[337758678,1726063672637,-500.0,0.00024931,2]
[337758679,1726063672658,-500.0,0.00024931,2]
[337758680,1726063672683,-500.0,0.00024931,2]
[337758681,1726063672707,-500.0,0.00024931,2]
[337758682,1726063672730,-500.0,0.00024931,2]
[337758683,1726063672752,-500.0,0.00024931,2]
[337758684,1726063672772,-500.0,0.00024931,2]
[337758685,1726063672793,-502.65823044,0.00024931,2]
[337758686,1726063672817,-500.0,0.00024931,2]
[337758687,1726063672838,-550.23053745,0.00024931,2]
[337758688,1726063672859,-460.92701698,0.00024931,2]
[337758689,1726063672880,-500.0,0.00024931,2]
[337758690,1726063672902,-500.0,0.00024931,2]
[337758691,1726063672924,-584.33,0.00024931,2]
[337758692,1726063672946,-500.0,0.00024931,2]
[337758693,1726063672968,-500.0,0.00024931,2]
[337758694,1726063672989,-500.0,0.00024931,2]
[337758695,1726063673009,-500.0,0.00024931,2]
[337758696,1726063673030,-500.0,0.00024931,2]
[337758697,1726063673051,-500.0,0.00024931,2]
[337758698,1726063673071,-516.04945414,0.00024931,2]
[337758699,1726063673093,-1514.69,0.00024931,2]
[337758700,1726063673114,-500.0,0.00024931,2]
[337758701,1726063673136,-1388.44,0.00024931,2]
[337758702,1726063673157,-500.0,0.00024931,2]
[337758703,1726063673182,-500.0,0.00024931,2]
[337758704,1726063673204,-1119.16,0.00024931,2]
[337758705,1726063673226,-500.0,0.00024931,2]
[337758706,1726063673246,-500.0,0.00024931,2]
[337758707,1726063673271,-2592.5,0.00024931,2]
[337758708,1726063673292,-500.0,0.00024931,2]
[337758709,1726063673312,-500.0,0.00024931,2]
[337758710,1726063673333,-500.0,0.00024931,2]
[337758711,1726063673354,-500.0,0.00024931,2]
[337758712,1726063673375,-500.0,0.00024931,2]
[337758713,1726063673396,-702.86,0.00024931,2]
[337758714,1726063673416,-500.0,0.00024931,2]
[337758715,1726063673437,-500.0,0.00024931,2]
[337758716,1726063673462,-865.08,0.00024931,2]
[337758717,1726063673483,-500.0,0.00024931,2]
[337758718,1726063673504,-1445.95,0.00024931,2]
[337758719,1726063673525,-392.26587627,0.00024931,2]
[337758720,1726063673546,-742.69,0.00024931,2]
[337758721,1726063673568,-532.35,0.00024931,2]
[337758722,1726063673592,-500.0,0.00024931,2]
[337758723,1726063673616,-502.48729009,0.00024931,2]
[337758724,1726063673637,-699.52,0.00024931,2]
[337758725,1726063673658,-500.0,0.00024931,2]
[337758726,1726063673681,-963.14,0.00024931,2]
[337758727,1726063673704,-500.0,0.00024931,2]
[337758728,1726063673727,-500.0,0.00024931,2]
[337758729,1726063673749,-500.0,0.00024931,2]
[337758730,1726063673771,-500.0,0.00024931,2]
[337758731,1726063673797,-500.0,0.00024931,2]
[337758732,1726063673822,-500.0,0.00024931,2]
[337758733,1726063673844,-500.0,0.00024931,2]
[337758734,1726063673865,-500.0,0.00024931,2]
[337758735,1726063673887,-1084.43,0.00024931,2]
[337758736,1726063673909,-500.0,0.00024931,2]
[337758737,1726063673931,-738.99,0.00024931,2]
[337758738,1726063673954,-5.89788005,0.00024931,2]
[337758881,1726063832637,-399.65818053,0.000239,2]
[337758882,1726063832646,-1226.95660411,0.00024557,2]
[337758883,1726063832656,-500.0,0.00024657,2]
[337758884,1726063832666,-1000.0,0.00024657,7]
[337758885,1726063832676,-1000.0,0.00024657,7]
[337758886,1726063832685,-1000.0,0.00024657,7]
[337758887,1726063832694,-1000.0,0.00024657,7]
[337758888,1726063832703,-1000.0,0.00024657,7]
[337758889,1726063832713,-901.28457936,0.00024657,7]
[337758927,1726063838106,-98.71542064,0.00024657,7]
[337758928,1726063838116,-151.0,0.00024657,7]
[337758929,1726063838126,-151.0,0.00024657,7]
[337758930,1726063838136,-151.0,0.00024657,7]
[337758931,1726063838146,-151.0,0.00024657,7]
[337758932,1726063838157,-151.0,0.00024657,7]
[337758933,1726063838167,-151.0,0.00024657,7]
[337758934,1726063838177,-151.0,0.00024657,7]
[337758935,1726063838187,-236.085312,0.00024657,7]
[337758936,1726063838197,-500.0,0.00024657,2]
[337758937,1726063838207,-500.0,0.00024657,2]
[337758938,1726063838218,-500.0,0.00024657,2]
[337758939,1726063838227,-500.0,0.00024657,2]
[337758940,1726063838237,-500.0,0.00024657,2]
[337758941,1726063838246,-506.54580111,0.00024657,2]
[337758942,1726063838256,-11449.58,0.00024657,2]
[337758943,1726063838266,-500.0,0.00024657,2]
[337758944,1726063838277,-1185.01,0.00024657,2]
[337758945,1726063838286,-853.59,0.00024657,2]
[337758946,1726063838296,-988.1,0.00024657,2]
[337758947,1726063838306,-500.0,0.00024657,2]
[337758948,1726063838316,-500.0,0.00024657,2]
[337758949,1726063838327,-3117.26,0.00024657,2]
[337758950,1726063838336,-495.76415998,0.00024657,2]
[337758951,1726063838346,-500.0,0.00024657,2]
[337758952,1726063838356,-500.0,0.00024657,2]
[337758953,1726063838366,-509.99,0.00024657,2]
[337758954,1726063838376,-1598.26,0.00024657,2]
[337758955,1726063838386,-500.0,0.00024657,2]
[337758956,1726063838395,-500.0,0.00024657,2]
[337758957,1726063838405,-500.0,0.00024657,2]
[337758958,1726063838415,-2173.17,0.00024657,2]
[337758959,1726063838424,-502.9523336,0.00024657,2]
[337758960,1726063838435,-500.0,0.00024657,2]
[337758961,1726063838444,-28094.41,0.00024657,2]
[337758962,1726063838455,-3483.32,0.00024657,2]
[337758963,1726063838465,-1859.91,0.00024657,2]
[337758964,1726063838474,-500.0,0.00024657,2]
[337758965,1726063838483,-500.0,0.00024657,2]
[337758966,1726063838493,-1638.26,0.00024657,2]
[337758967,1726063838502,-500.0,0.00024657,2]
[337758968,1726063838512,-651.52,0.00024657,2]
[337758969,1726063838522,-1120.54,0.00024657,2]
[337758970,1726063838532,-1782.32,0.00024657,2]
[337758971,1726063838542,-500.0,0.00024657,2]
[337758972,1726063838552,-1809.17,0.00024657,2]
[337758973,1726063838562,-500.0,0.00024657,2]
[337758974,1726063838573,-500.0,0.00024657,2]
[337758975,1726063838583,-500.0,0.00024657,2]
[337758976,1726063838592,-503.88223944,0.00024657,2]
[337758977,1726063838602,-500.0,0.00024657,2]
[337758978,1726063838612,-1123.16,0.00024657,2]
[337758979,1726063838622,-500.0,0.00024657,2]
[337758980,1726063838632,-654.13,0.00024657,2]
[337758981,1726063838642,-500.0,0.00024657,2]
[337758982,1726063838652,-500.0,0.00024657,2]
[337758983,1726063838663,-1066.46,0.00024657,2]
[337758984,1726063838673,-895.03,0.00024657,2]
[337758985,1726063838683,-500.0,0.00024657,2]
[337758986,1726063838693,-500.0,0.00024657,2]
[337758987,1726063838703,-959.84,0.00024657,2]
[337758988,1726063838714,-500.0,0.00024657,2]
[337758989,1726063838727,-643.59,0.00024657,2]
[337758990,1726063838737,-500.0,0.00024657,2]
[337758991,1726063838747,-500.0,0.00024657,2]
[337758992,1726063838756,-500.0,0.00024657,2]
[337758993,1726063838767,-517.51302516,0.00024657,2]
[337758994,1726063838776,-500.0,0.00024657,2]
[337758995,1726063838786,-500.0,0.00024657,2]
[337758996,1726063838796,-644.16,0.00024657,2]
[337758997,1726063838807,-2503.58,0.00024657,2]
[337758998,1726063838817,-1282.23,0.00024657,2]
[337758999,1726063838832,-500.0,0.00024657,2]
[337759000,1726063838842,-1332.43,0.00024657,2]
[337759001,1726063838851,-500.0,0.00024657,2]
[337759002,1726063838861,-500.0,0.00024657,2]
[337759003,1726063838870,-511.19025793,0.00024657,2]
[337759004,1726063838880,-500.0,0.00024657,2]
[337759005,1726063838890,-1103.77,0.00024657,2]
[337759006,1726063838899,-3122.02,0.00024657,2]
[337759007,1726063838909,-500.0,0.00024657,2]
[337759008,1726063838918,-500.0,0.00024657,2]
[337759009,1726063838928,-183.61002164,0.00024657,2]
[337759010,1726063838938,-197.06838378,0.00024657,2]
[337759011,1726063838947,-1173.92,0.00024657,2]
[337759012,1726063838957,-701.55,0.00024657,2]
[337759013,1726063838967,-773.55,0.00024657,2]
[337759014,1726063838978,-324.93325552,0.00024657,2]
[337759015,1726063838987,-500.0,0.00024657,2]
[337759016,1726063838997,-1309.65,0.00024657,2]
[337759017,1726063839007,-708.26,0.00024657,2]
[337759018,1726063839017,-1146.34,0.00024657,2]
[337759019,1726063839027,-508.66,0.00024657,2]
[337759020,1726063839038,-1579.36,0.00024657,2]
[337759021,1726063839047,-862.8,0.00024657,2]
[337759022,1726063839057,-500.0,0.00024657,2]
[337759023,1726063839067,-500.0,0.00024657,2]
[337759024,1726063839084,-1640.08,0.00024657,2]
[337759025,1726063839094,-500.0,0.00024657,2]
[337759026,1726063839104,-1774.09,0.00024657,2]
[337759027,1726063839113,-546.08,0.00024657,2]
[337759028,1726063839123,-500.0,0.00024657,2]
[337759029,1726063839133,-500.0,0.00024657,2]
[337759030,1726063839144,-500.0,0.00024657,2]
[337759031,1726063839153,-500.0,0.00024657,2]
[337759032,1726063839163,-3207.87,0.00024657,2]
[337759034,1726063839172,-615.73,0.00024657,2]
[337759035,1726063839182,-815.04,0.00024657,2]
[337759036,1726063839192,-1463.31,0.00024657,2]
[337759037,1726063839201,-500.0,0.00024657,2]
[337759038,1726063839211,-500.0,0.00024657,2]
[337759040,1726063839220,-490.95939197,0.00024657,2]
[337759042,1726063839230,-730.21,0.00024657,2]
[337759043,1726063839240,-842.22,0.00024657,2]
[337759044,1726063839249,-1322.78,0.00024657,2]
[337759045,1726063839260,-642.55,0.00024657,2]
[337759046,1726063839270,-500.0,0.00024657,2]
[337759047,1726063839280,-507.35512376,0.00024657,2]
[337759048,1726063839290,-1172.96,0.00024657,2]
[337759049,1726063839300,-500.0,0.00024657,2]
[337759050,1726063839310,-536.13,0.00024657,2]
[337759051,1726063839320,-2486.38,0.00024657,2]
[337759052,1726063839330,-1394.64,0.00024657,2]
[337759053,1726063839340,-500.0,0.00024657,2]
[337759054,1726063839351,-500.0,0.00024657,2]
[337759055,1726063839361,-500.0,0.00024657,2]
[337759056,1726063839371,-627.16175038,0.00024657,2]
[337759057,1726063839380,-509.83,0.00024657,2]
[337759058,1726063839390,-743.56,0.00024657,2]
[337759059,1726063839400,-500.0,0.00024657,2]
[337759062,1726063839410,-1911.91,0.00024657,2]
[337759064,1726063839419,-500.0,0.00024657,2]
[337759065,1726063839429,-500.0,0.00024657,2]
[337759066,1726063839440,-500.0,0.00024657,2]
[337759067,1726063839449,-2085.48,0.00024657,2]
[337759069,1726063839459,-690.29,0.00024657,2]
[337759071,1726063839469,-287.553015,0.00024658,2]
[337759073,1726063839479,-491.39815907,0.000248,2]
[337759074,1726063839490,-2282.32534383,0.00024831,2]
[337759075,1726063839499,-185.67,0.00024911,3]
[337759076,1726063839508,-185.67,0.00024911,3]
[337759077,1726063839518,-500.0,0.0002492,2]
[337759078,1726063839528,-197.03550953,0.0002492,2]
[337759080,1726063839537,-66920.50202883,0.00024921,3]
[337759090,1726063839792,-540.54,0.00024657,2]
[337759091,1726063839802,-161322.1881845,0.00024921,3]
[337759092,1726063839814,-108996.80956867,0.00024921,3]
[337759093,1726063839824,-44536.8855289,0.00024921,3]
[337759094,1726063839834,-494.10211995,0.00024931,2]
[337759095,1726063839844,-500.0,0.00024931,2]
[337759096,1726063839854,-500.0,0.00024931,2]
[337759097,1726063839863,-196.1175368,0.00024931,2]
[337759098,1726063839873,-500.0,0.00024931,2]
[337759099,1726063839883,-784.58,0.00024931,2]
[337759100,1726063839892,-500.0,0.00024931,2]
[337759101,1726063839902,-500.0,0.00024931,2]
[337759102,1726063839914,-537.7,0.00024931,2]
[337759103,1726063839924,-500.0,0.00024931,2]
[337759104,1726063839933,-1006.1961452,0.00024931,5]
[337759105,1726063839944,-500.0,0.00024931,2]
[337759106,1726063839954,-500.0,0.00024931,2]
[337759107,1726063839964,-500.0,0.00024931,2]
[337759108,1726063839974,-500.0,0.00024931,2]
[337759109,1726063839983,-500.0,0.00024931,2]
[337759111,1726063839993,-500.0,0.00024931,2]
[337759113,1726063840002,-500.0,0.00024931,2]
[337759114,1726063840011,-500.0,0.00024931,2]
[337759116,1726063840020,-500.0,0.00024931,2]
[337759123,1726063840234,-500.0,0.00024931,2]
[337759124,1726063840244,-599.55,0.00024931,2]
[337759125,1726063840254,-647.06,0.00024931,2]
[337759126,1726063840265,-500.0,0.00024931,2]
[337759127,1726063840275,-500.0,0.00024931,2]
[337759128,1726063840284,-550.90472551,0.00024931,2]
[337759129,1726063840294,-1593.1,0.00024931,2]
[337759130,1726063840304,-502.32175449,0.00024931,2]
[337759131,1726063840313,-500.0,0.00024931,2]
[337759132,1726063840323,-500.0,0.00024931,2]
[337759133,1726063840332,-614.94674532,0.00024931,2]
[337759134,1726063840342,-500.0,0.00024931,2]
[337759135,1726063840353,-500.0,0.00024931,2]
[337759136,1726063840363,-2776.28,0.00024931,2]
[337759137,1726063840374,-500.0,0.00024931,2]
[337759138,1726063840383,-500.0,0.00024931,2]
[337759139,1726063840393,-500.0,0.00024931,2]
[337759140,1726063840403,-500.0,0.00024931,2]
[337759141,1726063840412,-500.0,0.00024931,2]
[337759143,1726063840422,-1934.88,0.00024931,2]
[337759144,1726063840431,-500.0,0.00024931,2]
[337759145,1726063840441,-1885.66,0.00024931,2]
[337759146,1726063840451,-500.0,0.00024931,2]
[337759147,1726063840460,-244.76789489,0.00024931,2]
[337759148,1726063840473,-255.23210511,0.00024931,2]
[337759149,1726063840482,-500.0,0.00024931,2]
[337759150,1726063840493,-226.75856326,0.00024931,2]
[337759238,1726063846848,-74.05280899,0.00024931,2]
[337759239,1726063846857,-500.0,0.00024931,2]
[337759240,1726063846867,-500.0,0.00024931,2]
[337759241,1726063846876,-509.65034327,0.00024931,2]
[337759242,1726063846885,-500.0,0.00024931,2]
[337759243,1726063846894,-500.0,0.00024931,2]
[337759244,1726063846903,-500.0,0.00024931,2]
[337759245,1726063846912,-500.0,0.00024931,2]
[337759246,1726063846921,-1073.29,0.00024931,2]
[337759247,1726063846930,-500.0,0.00024931,2]
[337759248,1726063846940,-500.0,0.00024931,2]
[337759249,1726063846950,-1396.04,0.00024931,2]
[337759250,1726063846959,-500.0,0.00024931,2]
[337759251,1726063846968,-1065.51,0.00024931,2]
[337759252,1726063846977,-500.0,0.00024931,2]
[337759253,1726063846987,-500.0,0.00024931,2]
[337759254,1726063846996,-500.0,0.00024931,2]
[337759255,1726063847006,-500.0,0.00024931,2]
[337759256,1726063847016,-500.0,0.00024931,2]
[337759257,1726063847025,-545.55521153,0.00024931,2]
[337759258,1726063847035,-1182.44,0.00024931,2]
[337759259,1726063847045,-338.23549102,0.00024931,2]
[337759260,1726063847055,-1228.64,0.00024931,2]
[337759261,1726063847064,-1396.61,0.00024931,2]
[337759262,1726063847074,-500.0,0.00024931,2]
[337759263,1726063847083,-500.0,0.00024931,2]
[337759264,1726063847094,-500.0,0.00024931,2]
[337759265,1726063847103,-500.0,0.00024931,2]
[337759266,1726063847113,-500.0,0.00024931,2]
[337759267,1726063847123,-728.24,0.00024931,2]
[337759268,1726063847132,-1733.78,0.00024931,2]
[337759269,1726063847142,-500.0,0.00024931,2]
[337759270,1726063847152,-504.81414719,0.00024931,2]
[337759271,1726063847161,-502.24338076,0.00024931,2]
[337759272,1726063847171,-2773.31,0.00024931,2]
[337759273,1726063847181,-548.98285586,0.00024931,2]
[337759274,1726063847191,-500.0,0.00024931,2]
[337759275,1726063847201,-514.804258,0.00024931,2]
[337759276,1726063847210,-500.0,0.00024931,2]
[337759277,1726063847220,-500.0,0.00024931,2]
[337759278,1726063847229,-2856.69,0.00024931,2]
[337759279,1726063847239,-611.56,0.00024931,2]
[337759280,1726063847249,-500.0,0.00024931,2]
[337759281,1726063847258,-500.0,0.00024931,2]
[337759282,1726063847268,-500.0,0.00024931,2]
[337759283,1726063847277,-500.0,0.00024931,2]
[337759284,1726063847287,-482.49096454,0.00024931,2]
[337759285,1726063847296,-1815.83,0.00024931,2]
[337759286,1726063847305,-1578.92,0.00024931,2]
[337759287,1726063847315,-500.0,0.00024931,2]
[337759288,1726063847397,-500.0,0.00024931,2]
[337759289,1726063847408,-854.01,0.00024931,2]
[337759290,1726063847417,-1867.39,0.00024931,2]
[337759291,1726063847427,-200.0,0.00024931,2]
[337759292,1726063847437,-685.39,0.00024931,2]
[337759293,1726063847446,-500.0,0.00024931,2]
[337759294,1726063847457,-500.0,0.00024931,2]
[337759295,1726063847466,-500.0,0.00024931,2]
[337759296,1726063847476,-500.0,0.00024931,2]
[337759297,1726063847486,-1758.63,0.00024931,2]
[337759298,1726063847495,-500.0,0.00024931,2]
[337759299,1726063847505,-500.96802247,0.00024931,2]
[337759300,1726063847516,-556.35730981,0.00024931,2]
[337759301,1726063847527,-2235.45,0.00024931,2]
[337759302,1726063847537,-596.35601537,0.00024931,3]
[337759303,1726063847546,-500.0,0.00024931,2]
[337759304,1726063847555,-1878.7,0.00024931,2]
[337759305,1726063847564,-500.0,0.00024931,2]
[337759306,1726063847574,-500.0,0.00024931,2]
[337759307,1726063847584,-500.0,0.00024931,2]
[337759308,1726063847593,-500.0,0.00024931,2]
[337759309,1726063847603,-500.0,0.00024931,2]
[337759310,1726063847613,-628.28,0.00024931,2]
[337759311,1726063847621,-500.0,0.00024931,2]
[337759312,1726063847631,-500.0,0.00024931,2]
[337759313,1726063847640,-500.0,0.00024931,2]
[337759314,1726063847650,-500.0,0.00024931,2]
[337759315,1726063847660,-500.0,0.00024931,2]
[337759316,1726063847670,-635.78,0.00024931,2]
[337759317,1726063847680,-3202.41,0.00024931,2]
[337759318,1726063847690,-500.0,0.00024931,2]
[337759319,1726063847699,-951.43,0.00024931,2]
[337759320,1726063847709,-1568.09,0.00024931,2]
[337759321,1726063847718,-500.0,0.00024931,2]
[337759322,1726063847733,-500.0,0.00024931,2]
[337759323,1726063847743,-500.0,0.00024931,2]
[337759324,1726063847752,-597.84,0.00024931,2]
[337759325,1726063847762,-500.0,0.00024931,2]
[337759326,1726063847773,-500.0,0.00024931,2]
[337759327,1726063847783,-500.0,0.00024931,2]
[337759328,1726063847792,-585.51,0.00024931,2]
[337759329,1726063847802,-850.43,0.00024931,2]
[337759330,1726063847812,-500.0,0.00024931,2]
[337759331,1726063847822,-500.0,0.00024931,2]
[337759332,1726063847832,-542.29113135,0.00024931,2]
[337759333,1726063847842,-613.82677657,0.00024931,2]
[337759334,1726063847852,-1534.13,0.00024931,2]
[337759335,1726063847861,-500.0,0.00024931,2]
[337759336,1726063847871,-500.0,0.00024931,2]
[337759337,1726063847880,-691.64,0.00024931,2]
[337759338,1726063847890,-500.0,0.00024931,2]
[337759339,1726063847899,-500.0,0.00024931,2]
[337759340,1726063847908,-500.0,0.00024931,2]
[337759341,1726063847918,-675.96,0.00024931,2]
[337759342,1726063847927,-500.0,0.00024931,2]
[337759343,1726063847937,-258.10343028,0.00024931,2]
[337759344,1726063848066,-241.89656972,0.00024931,2]
[337759345,1726063848078,-821.98,0.00024931,2]
[337759346,1726063848088,-95.88987928,0.00024931,2]
[337759347,1726063848281,-404.11012072,0.00024931,2]
[337759348,1726063848291,-500.0,0.00024931,2]
[337759349,1726063848301,-810.48,0.00024931,2]
[337759350,1726063848311,-503.33122627,0.00024931,2]
[337759351,1726063848320,-500.0,0.00024931,2]
[337759352,1726063848333,-503.49433488,0.00024931,2]
[337759353,1726063848342,-500.0,0.00024931,2]
[337759354,1726063848352,-501.31326705,0.00024931,2]
[337759355,1726063848361,-500.0,0.00024931,2]
[337759356,1726063848371,-500.0,0.00024931,2]